lending/lending_fUSD_20250224
["ID","MTS","AMOUNT","RATE_DAILY","PERIOD"]
[354344412,1740436240346,-7901.67657273,0.0001,2]
[354344415,1740436240361,-1201.51352327,0.0001,2]
[354344421,1740436240414,-6014.0,0.0001,2]
[354344424,1740436240426,-16099.19834646,0.0001,2]
[354344430,1740436240473,-559.77661304,0.0001,2]
[354344432,1740436240484,-518.72365054,0.0001,2]
[354344434,1740436240498,-13201.90983459,0.0001,2]
[354344439,1740436240528,-415.405,0.0001,2]
[354344441,1740436240540,-5663.00549854,0.0001,2]
[354344443,1740436240551,-4662.1575,0.0001,2]
[354344456,1740436240663,-10427.21400694,0.0001,2]
[354344759,1740436243380,-6223.77527734,0.0001,2]
[354344762,1740436243391,-8665.65604414,0.0001,2]
[354344765,1740436243403,-26769.08249561,0.0001,2]
[354344843,1740436244018,-1552.23179941,0.0001,2]
[354344846,1740436244030,-6043.54681717,0.0001,2]
[354344848,1740436244042,-1163.764995,0.0001,2]
[354344850,1740436244054,-30615.16803337,0.0001,2]
[354344854,1740436244078,-3468.27493008,0.0001,2]
[354344856,1740436244089,-383.20020393,0.0001,2]
[354344858,1740436244101,-9056.9747432,0.0001,2]
[354344860,1740436244112,-1999.52695775,0.0001,2]
[354344862,1740436244124,-987.01,0.0001,2]
[354344865,1740436244135,-21241.99039072,0.0001,2]
[354344867,1740436244147,-18635.74362997,0.0001,2]
[354344869,1740436244158,-115133.20412826,0.0001,2]
[354345034,1740436245857,-2866.08229076,0.0001,2]
[354345036,1740436245869,-692.17038355,0.0001,2]
[354345048,1740436245972,-1022.1,0.0001,2]
[354345049,1740436245983,-1208.0,0.0001,2]
[354345050,1740436245996,-1024.15,0.0001,2]
[354345051,1740436246008,-5629.34023892,0.0001,2]
[354345052,1740436246020,-408.89828711,0.0001,2]
[354345053,1740436246031,-449.5557128,0.0001,2]
[354345054,1740436246042,-42249.49149925,0.0001,2]
[354345055,1740436246079,-10000.0,0.0001,2]
[354345056,1740436246107,-9050.47106516,0.0001,2]
[354345057,1740436246125,-1484.57103339,0.0001,2]
[354345058,1740436246151,-362.932242,0.0001,2]
[354345073,1740436246443,-10000.0,0.0001,2]
[354345084,1740436246734,-10000.0,0.0001,2]
[354345085,1740436247072,-10000.0,0.0001,2]
[354345086,1740436247435,-10000.0,0.0001,2]
[354345087,1740436247838,-10000.0,0.0001,2]
[354345088,1740436248137,-10000.0,0.0001,2]
[354345089,1740436249354,-10000.0,0.0001,2]
[354345090,1740436250843,-393.11219075,9.999e-05,2]
[354345091,1740436250866,-9606.88780925,0.0001,2]
[354345092,1740436257992,-5660.0,0.0001,2]
[354345093,1740436963967,157.6,8.767e-05,2]
[354345111,1740437301615,-300.0,9.799e-05,2]
[354345112,1740437301638,-3287.52,9.8e-05,2]
[354345113,1740437301661,-174.098,9.8e-05,2]
[354345114,1740437343864,-3787.52718892,9.8e-05,2]
[354345135,1740437432238,-159.36,9.884e-05,2]
[354345136,1740437432249,-600.0,9.9e-05,3]
[354345137,1740437432259,-150.0,9.936e-05,2]
[354345138,1740437432268,-21.89,9.973e-05,2]
[354345139,1740437432281,-478.11,9.973e-05,2]
[354345140,1740437432290,-21.89,9.998e-05,2]
[354345141,1740437432306,-128.11,9.998e-05,2]
[354345142,1740437432315,-1155.04800563,9.999e-05,3]
[354345143,1740437432536,-1155.04800562,9.999e-05,3]
[354345144,1740437432554,-1155.04800563,9.999e-05,3]
[354345145,1740437432564,-16183.48041921,9.999e-05,2]
[354345146,1740437432573,-24729.38636391,0.0001,2]
[354345147,1740437432585,-568.17990878,0.0001,2]
[354345148,1740437432605,-647.18202209,0.0001,2]
[354345150,1740437432668,-410409.40952497,0.0001,2]
[354345151,1740437432679,-3983.04186657,0.0001,2]
[354345152,1740437432691,-329286.93730662,0.0001,2]
[354345153,1740437432724,-14662.62076938,0.0001,2]
[354345154,1740437432737,-2042.67767467,0.0001,2]
[354345155,1740437432750,-32592.00000002,0.0001,2]
[354345156,1740437432769,-2643.39459498,0.0001,2]
[354345157,1740437432782,-1287.74999999,0.0001,2]
[354345158,1740437432794,-930.3,0.0001,2]
[354345199,1740437438144,-709.61960568,0.0001,2]
[354345200,1740437438156,-16179.20463594,0.0001,2]
[354345201,1740437438168,-4807.23172619,0.0001,2]
[354345202,1740437438180,-1025.15144011,0.0001,2]
[354345203,1740437438192,-1967.12107538,0.0001,2]
[354345204,1740437438203,-109473.94283751,0.0001,2]
[354345205,1740437438229,-1815.97474894,0.0001,2]
[354345206,1740437438241,-93047.20400001,0.0001,2]
[354345207,1740437438253,-4199.11425279,0.0001,2]
[354345208,1740437438288,-3000.000001,0.0001,2]
[354345209,1740437438301,-464.505,0.0001,2]
[354345210,1740437438312,-321047.52332847,0.0001,2]
[354345211,1740437438324,-2439.445,0.0001,2]
[354345212,1740437438370,-4868.7360926,0.0001,2]
[354345213,1740437438382,-1000.80695207,0.0001,2]
[354345214,1740437438394,-1000.0,0.0001,2]
[354345215,1740437438448,-1171.38393184,0.0001,2]
[354345216,1740437438460,-28771.07116101,0.0001,2]
[354345217,1740437438471,-461.93733383,0.0001,2]
[354345218,1740437438483,-9247.16874785,0.0001,2]
[354345260,1740437440223,-278.94496488,0.0001,2]
[354345261,1740437440236,-3594.86716903,0.0001,2]
[354345262,1740437440340,-475.68233585,0.0001,2]
[354345263,1740437440352,-466.765,0.0001,2]
[354345264,1740437440364,-1353.8216,0.0001,2]
[354345265,1740437440474,-288.07999384,0.0001,2]
[354345266,1740437440486,-11679.7213044,0.0001,2]
[354345267,1740437440496,-176.77584246,0.0001,2]
[354345268,1740437440506,-1800.0,0.0001,2]
[354345269,1740437440516,-172.95717646,0.0001,2]
[354345270,1740437440525,-1300.0,0.0001,3]
[354345271,1740437440535,-2564.63604,0.0001,2]
[354345272,1740437440545,-319.51077396,0.0001,2]
[354345273,1740437440555,-448.52430103,0.0001,2]
[354345274,1740437440565,-609.84585344,0.0001,2]
[354345275,1740437440574,-500.0,0.000102,2]
[354345276,1740437440583,-635.39,0.00010544,2]
[354345277,1740437440593,-150.0,0.0001078,2]
[354345278,1740437440603,-150.0,0.0001089,2]
[354345279,1740437440615,-162.12324438,0.000109,2]
[354345280,1740437440624,-255.0,0.00010998,2]
[354345281,1740437440638,-500.0,0.00011,2]
[354345282,1740437440647,-3347.73944823,0.00011099,2]
[354345283,1740437440658,-150.0,0.00012098,2]
[354345284,1740437440667,-4744.92861019,0.000121,2]
[354345285,1740437440677,-219.64641782,0.00012111,2]
[354345286,1740437440687,-2000.0,0.00012223,2]
[354345287,1740437440697,-200.0,0.00012234,2]
[354345288,1740437440707,-150.0,0.00012234,2]
[354345289,1740437440717,-1330.5973163,0.00012253,2]
[354345290,1740437440746,-87.5226837,0.00012253,2]
[354345291,1740437440757,-250.0,0.00012279,2]
[354345292,1740437440770,-235.69665907,0.00012295,2]
[354345293,1740437440974,-501.75334093,0.00012295,2]
[354345294,1740437440984,-669.68803179,0.00012311,2]
[354345295,1740437440996,-572.54459972,0.00012311,2]
[354345296,1740437441008,-11.51736849,0.00012311,2]
[354345297,1740437441017,-303.77163151,0.00012318,2]
[354345298,1740437441028,-370.292,0.00012318,2]
[354345299,1740437441040,-2400.47475159,0.00012318,2]
[354345300,1740437441051,-19374.02298066,0.00012318,2]
[354345301,1740437441072,-1451.43863624,0.00012318,2]
[354345302,1740437441082,-246.49,0.00012366,2]
[354345303,1740437441091,-950.64,0.00012393,2]
[354345304,1740437441100,-1000.0,0.00012411,2]
[354345305,1740437441109,-218.16,0.00012437,2]
[354345306,1740437441119,-174.64,0.00012495,2]
[354345307,1740437441128,-200.0,0.000125,3]
[354345308,1740437441137,-635.39,0.00012808,2]
[354345309,1740437441146,-3347.73944818,0.000129,2]
[354345310,1740437441156,-315.94,0.00012911,2]
[354345311,1740437441165,-250.0,0.00012949,2]
[354345312,1740437441174,-181.12,0.00012953,2]
[354345313,1740437441185,-163.02,0.0001313,2]
[354345314,1740437441194,-1500.0,0.00013611,2]
[354345315,1740437441204,-2100.56,0.00013611,2]
[354345316,1740437441214,-170.71,0.00013699,2]
[354345317,1740437441223,-200.0,0.00013715,2]
[354345318,1740437441232,-1918.4,0.00013835,2]
[354345319,1740437441242,-1000.0,0.00013963,2]
[354345320,1740437441252,-500.0,0.00013977,2]
[354345321,1740437441261,-11985.1827907,0.000148,2]
[354345322,1740437441271,-448.52430098,0.00014883,2]
[354345323,1740437441280,-1870.0,0.00015,3]
[354345324,1740437441290,-2564.63604,0.00015,2]
[354345325,1740437441300,-999.0,0.00015068,2]
[354345326,1740437441311,-300.0,0.00015068,2]
[354345327,1740437441322,-635.39,0.00015072,2]
[354345328,1740437441331,-909.49,0.0001531,2]
[354345329,1740437441341,-9590.78,0.0001531,2]
[354345330,1740437441351,-468.6,0.0001531,2]
[354345331,1740437441361,-150.99,0.0001531,2]
[354345332,1740437441371,-150.99,0.0001531,2]
[354345333,1740437441380,-6011.61,0.0001531,2]
[354345334,1740437441390,-999.99,0.0001531,2]
[354345335,1740437441399,-446.23,0.0001531,2]
[354345336,1740437441408,-852.98,0.0001531,2]
[354345337,1740437441418,-1000.0,0.00015514,2]
[354345338,1740437441428,-808.44,0.00015642,2]
[354345339,1740437441438,-2000.0,0.000159,5]
[354345340,1740437441447,-3347.73944818,0.000159,2]
[354345341,1740437441457,-160.63651706,0.00015973,2]
[354345342,1740437441466,-316.57639061,0.00015973,2]
[354345343,1740437441475,-519.38205083,0.00015973,2]
[354345344,1740437441484,-320.45093159,0.00015999,2]
[354345345,1740437441494,-138587.57409163,0.00016,4]
[354345346,1740437441503,-163.02,0.00016412,2]
[354345347,1740437441512,-150.0,0.00016438,2]
[354345348,1740437441521,-300.0,0.00016438,2]
[354345349,1740437441530,-3086.36,0.00016439,2]
[354345350,1740437441540,-176.51,0.00016712,2]
[354345351,1740437441550,-20904.08126018,0.0001688,2]
[354345352,1740437441561,-150.0,0.00016986,2]
[354345353,1740437441571,-169.64,0.00017026,2]
[354345354,1740437441580,-1000.0,0.00017065,2]
[354345355,1740437441590,-174.71037227,0.000172,2]
[354345356,1740437441599,-999.0,0.0001726,4]
[354345357,1740437441610,-635.39,0.00017336,2]
[354345358,1740437441622,-950.64,0.00017351,2]
[354345359,1740437441631,-500.0,0.000175,2]
[354345360,1740437441640,-150.0,0.00017534,2]
[354345361,1740437441651,-808.44,0.00017597,2]
[354345362,1740437441661,-600.0,0.00017808,2]
[354345363,1740437441671,-151.92,0.00017926,2]
[354345364,1740437441680,-150.0,0.00018082,2]
[354345365,1740437441690,-200.0,0.00018082,2]
[354345366,1740437441700,-532.61064747,0.00018161,2]
[354345367,1740437441710,-174.71037224,0.0001842,2]
[354345368,1740437441719,-1000.0,0.00018617,2]
[354345369,1740437441729,-150.0,0.0001863,2]
[354345370,1740437441739,-998.17561278,0.0001888,2]
[354345371,1740437441749,-15585.75285231,0.00018888,2]
[354345372,1740437441759,-24353.06143829,0.000189,2]
[354345373,1740437441769,-3347.73944818,0.000189,2]
[354345374,1740437441779,-19453.35317468,0.00019,2]
[354345375,1740437441788,-38287.96696566,0.00019,2]
[354345376,1740437441798,-1000.0,0.00019178,7]
[354345377,1740437441808,-150.0,0.00019178,2]
[354345378,1740437441818,-150.0,0.00019178,2]
[354345379,1740437441827,-500.0,0.00019394,2]
[354345380,1740437441837,-167.11,0.00019397,30]
[354345381,1740437441848,-1000.0,0.00019452,7]
[354345382,1740437441858,-999.0,0.00019452,6]
[354345383,1740437441867,-500.0,0.00019494,2]
[354345384,1740437441877,-808.44,0.00019552,2]
[354345385,1740437441886,-500.0,0.00019594,2]
[354345386,1740437441896,-635.39,0.000196,2]
[354345387,1740437441905,-163.02,0.00019695,2]
[354345388,1740437441914,-1000.0,0.00019726,7]
[354345389,1740437441923,-150.0,0.00019726,2]
[354345390,1740437441933,-1316.48550288,0.00019814,2]
[354345391,1740437441943,-1316.48550281,0.00019814,2]
[354345392,1740437441952,-169.64,0.00019836,2]
[354345393,1740437441962,-448.52430098,0.00019867,2]
[354345394,1740437441972,-89742.26171807,0.0001987,7]
[354345395,1740437441981,-500.0,0.00019873,2]
[354345396,1740437441991,-500.15067257,0.00019873,2]
[354345397,1740437442001,-514.0,0.0001997,2]
[354345398,1740437442011,-2514.67351083,0.0002,2]
[354345399,1740437442020,-1117.89854444,0.0002,4]
[354345400,1740437442031,-1725.21918588,0.0002,4]
[354345401,1740437442043,-1000.0,0.0002,7]
[354345402,1740437442053,-2564.63605,0.0002,2]
[354345403,1740437442062,-919.3,0.00020273,7]
[354345404,1740437442072,-150.0,0.00020274,2]
[354345405,1740437442083,-170.71,0.00020548,2]
[354345406,1740437442092,-237.25314541,0.00020814,46]
[354345407,1740437442102,-150.0,0.00020822,2]
[354345408,1740437442112,-550.0,0.00021,2]
[354345409,1740437442122,-150.0,0.0002137,2]
[354345410,1740437442132,-319.51077394,0.00021373,2]
[354345411,1740437442142,-808.44,0.00021508,2]
[354345412,1740437442152,-999.0,0.00021643,8]
[354345413,1740437442162,-635.39,0.00021864,2]
[354345414,1740437442171,-3347.73944818,0.000219,2]
[354345415,1740437442181,-150.0,0.00021918,2]
[354345416,1740437442190,-163.35954575,0.00021918,2]
[354345417,1740437442200,-167.11,0.00021981,30]
[354345418,1740437442209,-150.0,0.000223,2]
[354345419,1740437442219,-150.0,0.00022466,2]
[354345420,1740437442228,-1316.48550281,0.00022757,2]
[354345421,1740437442237,-334.0,0.0002279,2]
[354345422,1740437442247,-600.0,0.00023,2]
[354345423,1740437442256,-150.0,0.00023014,2]
[354345424,1740437442266,-808.44,0.00023463,2]
[354345425,1740437442276,-150.0,0.00023562,2]
[354345426,1740437442285,-334.0,0.0002369,2]
[354345427,1740437442295,-999.0,0.00023835,10]
[354345428,1740437442305,-157.26,0.00023836,2]
[354345429,1740437442315,-150.0,0.0002411,2]
[354345430,1740437442324,-635.39,0.00024128,2]
[354345431,1740437442334,-3281.0,0.000243,2]
[354345432,1740437442343,-167.11,0.00024565,30]
[354345433,1740437442353,-334.0,0.000246,2]
[354345434,1740437442363,-150.0,0.00024658,2]
[354345435,1740437442372,-1000.0,0.00024658,2]
[354345436,1740437442381,-448.52430098,0.0002485,2]
[354345437,1740437442391,-3347.73944818,0.000249,2]
[354345438,1740437442400,-500.0,0.00024932,2]
[354345439,1740437442409,-500.0,0.00024932,2]
[354345440,1740437442642,-500.0,0.00024932,2]
[354345441,1740437442655,-650.0,0.00025,2]
[354345442,1740437442665,-2564.63604,0.00025,2]
[354345443,1740437442675,-2839.0,0.00025025,2]
[354345444,1740437442684,-164.1,0.000251,7]
[354345445,1740437442694,-5550.0,0.000252,3]
[354345446,1740437442703,-205.0,0.000255,2]
[354345447,1740437442713,-334.0,0.000255,2]
[354345448,1740437442722,-999.0,0.00026027,12]
[354345449,1740437442732,-5550.0,0.000261,5]
[354345450,1740437442742,-635.39,0.00026392,2]
[354345451,1740437442752,-205.0,0.0002641,2]
[354345452,1740437442761,-334.0,0.0002641,2]
[354345453,1740437442771,-174.71037224,0.00026941,43]
[354345454,1740437442780,-700.0,0.00027,2]
[354345455,1740437442791,-151.92,0.00027084,2]
[354345456,1740437442800,-167.11,0.00027149,30]
[354345457,1740437442810,-205.0,0.0002732,2]
[354345458,1740437442819,-334.0,0.0002732,2]
[354345459,1740437442829,-250.0,0.0002737,2]
[354345460,1740437442839,-170.71,0.00027397,2]
[354345461,1740437442848,-1789.0,0.0002781,2]
[354345462,1740437442858,-567.0,0.0002781,2]
[354345463,1740437442867,-2693.337,0.0002781,2]
[354345464,1740437442877,-164.982,0.0002781,2]
[354345465,1740437442886,-158.812,0.0002781,2]
[354345466,1740437442895,-1009.0,0.0002781,2]
[354345467,1740437442905,-150.0,0.0002781,2]
[354345468,1740437442914,-241.001,0.0002781,2]
[354345469,1740437442923,-1110.0,0.0002781,2]
[354345470,1740437442934,-5010.0,0.00027872,2]
[354345471,1740437442943,-3347.73944818,0.000279,2]
[354345472,1740437442952,-1824.67,0.00028203,2]
[354345473,1740437442962,-999.0,0.00028219,14]
[354345474,1740437442971,-205.0,0.0002822,30]
[354345475,1740437442980,-334.0,0.0002822,2]
[354345476,1740437442990,-635.39,0.00028656,2]
[354345477,1740437443000,-750.0,0.00029,2]
[354345478,1740437443009,-205.0,0.0002913,30]
[354345479,1740437443019,-334.0,0.0002913,2]
[354345480,1740437443028,-1316.48550281,0.00029186,2]
[354345481,1740437443038,-167.11,0.00029733,30]
[354345482,1740437443047,-448.52430098,0.00029833,2]
[354345483,1740437443057,-1007.87247954,0.0003,120]
[354345484,1740437443067,-2564.63604,0.0003,2]
[354345485,1740437443077,-205.0,0.0003003,30]
[354345486,1740437443087,-334.0,0.0003003,2]
[354345487,1740437443096,-179.87,0.0003041,16]
[354345488,1740437443106,-150.0,0.000306,7]
[354345489,1740437443115,-150.0,0.000306,7]
[354345490,1740437443125,-150.58726838,0.000306,7]
[354345491,1740437443134,-150.0,0.000306,7]
[354345492,1740437443143,-150.0,0.000306,7]
[354345493,1740437443152,-150.0,0.000306,7]
[354345494,1740437443162,-150.0,0.000308,7]
[354345495,1740437443171,-150.0,0.0003081,2]
[354345496,1740437443181,-3347.73944818,0.000309,2]
[354345497,1740437443190,-635.39,0.00030919,2]
[354345498,1740437443199,-205.0,0.0003094,30]
[354345499,1740437443209,-334.0,0.0003094,2]
[354345500,1740437443218,-89000.0,0.00031,31]
[354345501,1740437443227,-150.0,0.00031,7]
[354345502,1740437443237,-800.0,0.00031,2]
[354345503,1740437443246,-150.0,0.00031025,7]
[354345504,1740437443255,-154.9035766,0.00031062,2]
[354345505,1740437443266,-204.32,0.00031074,2]
[354345506,1740437443275,-150.0,0.000312,7]
[354345507,1740437443285,-5095.51,0.00031244,2]
[354345508,1740437443294,-150.0,0.000314,7]
[354345509,1740437443303,-4627.3688869,0.0003143,4]
[354345510,1740437443314,-150.0,0.0003145,7]
[354345511,1740437443323,-150.0,0.0003145,7]
[354345512,1740437443332,-232.91,0.000315,14]
[354345513,1740437443342,-150.0,0.000316,7]
[354345514,1740437443351,-22725.2079684,0.00031781,7]
[354345515,1740437443360,-42098.3007791,0.00031781,7]
[354345516,1740437443370,-150.0,0.000318,7]
[354345517,1740437443379,-205.0,0.0003185,30]
[354345518,1740437443388,-334.0,0.0003185,2]
[354345519,1740437443398,-150.0,0.00031875,7]
[354345520,1740437443407,-165.0,0.00031892,120]
[354345521,1740437443417,-155.0,0.00031892,120]
[354345522,1740437443426,-159.0,0.00031892,120]
[354345523,1740437443436,-1315.81558364,0.00031949,2]
[354345524,1740437443445,-154.61640085,0.00031949,2]
[354345525,1740437443455,-609.84585344,0.0003199,2]
[354345526,1740437443465,-609.84585344,0.0003199,2]
[354345527,1740437443474,-100000.0,0.00032,32]
[354345528,1740437443485,-200.0,0.00032,30]
[354345529,1740437443495,-150.0,0.00032,7]
[354345530,1740437443505,-3546184.38722116,0.00032,30]
[354345533,1740437443560,-404.0,0.00032,30]
[354345534,1740437443624,-2050.5220829,0.00032,30]
[354345537,1740437443636,-1052.0,0.00032,30]
[354345561,1740437444225,-500.0,0.000207,2]
[354345562,1740437444235,-12212.27219229,0.00032,30]
[354345563,1740437444247,-7681.66200823,0.00032,30]
[354345564,1740437444259,-799.4,0.00032,30]
[354345565,1740437444330,-3809.56147423,0.00032,30]
[354345567,1740437444351,-465.23,0.00032,30]
[354345569,1740437444362,-15313.92253561,0.00032,30]
[354345570,1740437444374,-264529.58111534,0.00032,30]
[354345584,1740437446258,-6123.22194568,0.00032,30]
[354345585,1740437446270,-32971.90150882,0.00032,30]
[354345586,1740437446339,-617.76,0.00032,30]
[354345587,1740437446530,-364.61208403,0.00032,30]
[354345588,1740437446542,-107012.17583171,0.00032,30]
[354345589,1740437446552,-4967.27,0.00032049,2]
[354345590,1740437446564,-150.0,0.000322,7]
[354345591,1740437446574,-204.32,0.00032225,2]
[354345592,1740437446584,-150.0,0.000323,7]
[354345594,1740437446594,-150.0,0.000323,7]
[354345596,1740437446603,-167.11,0.00032317,30]
[354345597,1740437446614,-150.0,0.000324,7]
[354345598,1740437446625,-35000.0,0.000325,120]
[354345599,1740437446635,-4960.22,0.00032524,2]
[354345600,1740437446644,-282.68732352,0.00032578,30]
[354345602,1740437446655,-152.40589681,0.00032578,30]
[354345603,1740437446664,-152.0,0.00032588,3]
[354345604,1740437446673,-150.0,0.000326,7]
[354345605,1740437446682,-150.0,0.00032725,7]
[354345606,1740437446692,-205.0,0.0003275,30]
[354345607,1740437446703,-334.0,0.0003275,2]
[354345608,1740437446713,-150.0,0.000328,7]
[354345610,1740437446722,-319.51077394,0.00032845,2]
[354345612,1740437446732,-500.0,0.00032876,20]
[354345613,1740437446742,-100000.0,0.00033,33]
[354345614,1740437446752,-2000.0,0.00033,90]
[354345615,1740437446761,-150.0,0.00033,7]
[354345616,1740437446771,-850.0,0.00033,2]
[354345617,1740437446781,-498.94009901,0.00033,30]
[354345618,1740437446791,-152.0,0.00033,2]
[354345619,1740437446801,-150.0,0.0003315,7]
[354345620,1740437446812,-150.0,0.0003315,7]
[354345621,1740437446821,-635.39,0.00033183,2]
[354345622,1740437446831,-150.0,0.000332,7]
[354345623,1740437446841,-153.32,0.00033279,2]
[354345624,1740437446850,-156.17,0.00033357,120]
[354345625,1740437446860,-204.32,0.00033376,2]
[354345626,1740437446870,-150.0,0.000334,7]
[354345627,1740437446880,-150.0,0.00033575,7]
[354345628,1740437446890,-153.32,0.00033589,2]
[354345629,1740437446900,-150.0,0.000336,7]
[354345630,1740437446911,-205.0,0.0003366,30]
[354345631,1740437446922,-334.0,0.0003366,2]
[354345632,1740437447153,-500.0,0.00033698,25]
[354345633,1740437447164,-150.0,0.000338,7]
[354345634,1740437447174,-153.32,0.000339,2]
[354345635,1740437447184,-2700.0,0.000339,12]
[354345636,1740437447194,-3347.73944818,0.000339,2]
[354345637,1740437447204,-621.18,0.00033911,30]
[354345638,1740437447214,-100000.0,0.00034,34]
[354345639,1740437447223,-564.176273,0.00034,120]
[354345640,1740437447233,-135531.58612971,0.00034,25]
[354345642,1740438003704,156.46,8.767e-05,2]
[354345880,1740438632429,-434.06340277,0.000102,2]
[354345881,1740438632594,-65.93659723,0.000102,2]
[354345882,1740438632610,-496.56340277,0.0001089,2]
[354345883,1740438632624,-3.43659723,0.0001089,2]
[354345884,1740438632634,-150.0,0.00011055,2]
[354345885,1740438632649,-102.3863584,0.0001122,2]
[354345886,1740438632662,-47.6136416,0.0001122,2]
[354345887,1740438632672,-228.8263584,0.00012314,2]
[354345890,1740438632738,-271.1736416,0.00012314,2]
[354345892,1740438632749,-187.2763604,0.00013699,2]
[354345894,1740438632762,-105.1936396,0.00013699,2]
[354345896,1740438632772,-292.47,0.00013699,2]
[354345898,1740438632783,-60.75942986,0.00013699,2]
[354345914,1740438636826,-231.71057014,0.00013699,2]
[354345916,1740438636837,-292.47,0.00013699,2]
[354345918,1740438636847,-127.37370018,0.00013699,2]
[354345920,1740438636861,-165.09629982,0.00013699,2]
[354345922,1740438636871,-292.47,0.00013699,2]
[354345923,1740438636880,-292.47,0.00013699,2]
[354345924,1740438636890,-87.80070018,0.00013699,2]
[354345998,1740438638317,-204.66929982,0.00013699,2]
[354346000,1740438638327,-292.47,0.00013699,2]
[354346002,1740438638337,-292.47,0.00013699,2]
[354346004,1740438638347,-292.47,0.00013699,2]
[354346006,1740438638357,-292.47,0.00013699,2]
[354346008,1740438638368,-292.47,0.00013699,2]
[354346010,1740438638378,-292.47,0.00013699,2]
[354346012,1740438638388,-292.47,0.00013699,2]
[354346014,1740438638397,-292.47,0.00013699,2]
[354346015,1740438638407,-292.47,0.00013699,2]
[354346018,1740438638417,-292.47,0.00013699,2]
[354346020,1740438638427,-292.47,0.00013699,2]
[354346022,1740438638437,-292.53749704,0.00013699,2]
[354346024,1740438638447,-154.46196946,0.0001479,2]
[354346026,1740438638457,-21.55354771,0.0001489,2]
[354346028,1740438638477,-202.44898817,0.0001489,2]
[354346029,1740438638488,-362.55100933,0.00015068,2]
[354346030,1740438638540,-439.2082749,0.00015068,2]
[354346031,1740438638553,-197.24071577,0.00015068,2]
[354346032,1740438638563,-154.46196945,0.00015729,2]
[354346033,1740438638573,-213.49731978,0.00016437,2]
[354346034,1740438638655,-86.50268022,0.00016437,2]
[354346035,1740438638666,-152.307,0.00016438,2]
[354346042,1740438638989,-66.73369015,0.00016438,2]
[354346049,1740438639034,-89.26701185,0.00016438,2]
[354346052,1740438639044,-1040.88552,0.00016438,2]
[354346055,1740438639055,-1630.784808,0.00016438,2]
[354346058,1740438639066,-152.307,0.00016491,2]
[354346061,1740438639075,-1040.88552,0.00016491,2]
[354346064,1740438639085,-1630.784808,0.00016491,2]
[354346066,1740438639094,-697.48,0.00016491,2]
[354346068,1740438639104,-150.99,0.00016491,2]
[354346070,1740438639117,-9999.99,0.00016491,2]
[354346072,1740438639127,-1040.88552,0.0001652,2]
[354346074,1740438639136,-15407.25,0.0001652,2]
[354346076,1740438639145,-1630.784808,0.0001652,2]
[354346078,1740438639155,-3495.66,0.0001652,2]
[354346080,1740438639165,-150.99,0.0001652,2]
[354346082,1740438639174,-293.42,0.0001652,2]
[354346084,1740438639184,-152.307,0.00016573,2]
[354346086,1740438639193,-156.000702,0.00016573,2]
[354346088,1740438639202,-1040.88552,0.00016573,2]
[354346090,1740438639212,-1630.784808,0.00016573,2]
[354346092,1740438639221,-152.307,0.00016602,2]
[354346094,1740438639230,-1040.88552,0.00016602,2]
[354346096,1740438639240,-1630.784808,0.00016602,2]
[354346099,1740438639250,-152.307,0.00016655,2]
[354346100,1740438639259,-1040.88552,0.00016655,2]